[Event "26th OIBM 2023"]
[Site "Gmund am Tegernsee"]
[Date "2023.10.30"]
[Round "3.38"]
[White "Raupp, Thomas"]
[Black "Petrov, Nikita"]
[Result "1/2-1/2"]
[ECO "E35"]
[WhiteElo "2239"]
[BlackElo "2551"]
[Annotator "TA"]
[PlyCount "79"]
[EventDate "2023.10.04"]
[EventType "swiss"]
[EventCountry "GER"]
[SourceTitle "playchess.com"]
[Source "ChessBase"]
[SourceQuality "1"]
[TimeControl "40/5400+30:1800+30"]

{[%evp 12,79,26,15,15,24,55,12,12,18,9,0,0,0,0,0,0,0,0,-22,-13,-31,-26,-39,0,0,0,0,0,-7,0,-35,-27,-31,-29,-42,-37,-29,-35,-35,-35,-30,-31,-33,0,0,0,0,0,0,0,-183,-179,-151,-71,-109,-102,-102,-38,-117,0,0,130,0,0,0,0,0,0,-64]} 1. d4 {[%emt 0:00:09]} Nf6 {[%emt 0:00:26]} 2. c4 {[%emt 0:00:17]} e6 {[%emt 0:00:06]} 3. Nc3 {[%emt 0:00:34]} Bb4 {[%emt 0:00:06]} 4. Qc2 {[%emt 0:01:35]} d5 {[%emt 0:00:23]} 5. cxd5 {[%emt 0:01:24]} exd5 {[%emt 0:00:14]} 6. Bg5 {[%emt 0:04:33][%cal Bc1g5,Bg5h4,Bh4g3][%mdl 32]} h6 {[%emt 0:00:53][%cal Bh7h6,Bh6h5,Bh5h4][%mdl 32]} 7. Bh4 $1 {[%emt 0:01:43] 7.Bh4 scores better than 7.Bxf6.} g5 {[%emt 0:02:16] E35: Nimzo-Indian: Classical: 4...d5 5 cxd5 exd5.} 8. Bg3 {[%emt 0:00:08]} h5 {[%emt 0:00:07]} 9. e3 {[%emt 0:04:26]} h4 {[%emt 0:01:21]} 10. Be5 {[%emt 0:00:07]} Nbd7 {[%emt 0:00:33]} 11. h3 {[%emt 0:07:41]} Bxc3+ {[%emt 0:10:23]} 12. bxc3 {[%emt 0:03:28]} Nxe5 {[%emt 0:00:51]} 13. dxe5 {[%emt 0:00:08]} Ne4 {[%emt 0:06:10]} 14. Bd3 {[%emt 0:01:19]} Nc5 {[%emt 0:03:19]} 15. Bf5 {[%emt 0:01:31]} Bxf5 {[%emt 0:20:06]} 16. Qxf5 {[%emt 0:01:40] [#]} Qe7 $146 {[%emt 0:08:59]} ({Predecessor:} 16... Qd7 17. Qxg5 Qb5 18. Ne2 Nd3+ 19. Kf1 Qb2 20. Rd1 Qc2 21. Ra1 Qb2 22. Rd1 Qc2 23. Ra1 Qb2 24. Rd1 Qc2 {½-½ Pershin,D (2397)-Petrov,N (2560) RUS-chT 29th 2022 (3.1)}) 17. Ne2 {[%emt 0:10:21]} Qe6 {[%emt 0:04:25]} 18. Qxg5 {[%emt 0:09:48]} Nd3+ {[%emt 0:00:11]} 19. Kf1 {[%emt 0:00:38]} Qxe5 {[%emt 0:00:21]} 20. Qxe5+ {[%emt 0:08:07]} Nxe5 {[%emt 0:00:04][%cal Bd3e5,Be5c4,Bc4d6,Bd6e4][%mdl 32]} 21. Nf4 {[%emt 0:00:54]} O-O-O {[%emt 0:01:47]} 22. Ke2 {[%emt 0:01:22]} Nc4 {[%emt 0:00:26]} 23. Rhd1 {[%emt 0:01:57]} c6 {[%emt 0:00:18]} 24. Rd4 {[%emt 0:05:51]} Nd6 {[%emt 0:00:47]} 25. Rc1 {[%emt 0:05:46]} a5 {[%emt 0:10:07]} 26. Nd3 {[%emt 0:03:07]} Rdg8 {[%emt 0:03:27]} 27. Kf1 {[%emt 0:02:57]} Ne4 {[%emt 0:07:32]} 28. Ne1 {[%emt 0:05:02]} b5 {[%emt 0:04:26]} 29. a4 {[%emt 0:08:12] Strongly threatening axb5.} Nc5 {[%emt 0:00:16] White must now prevent ...Nb3.} 30. axb5 {[%emt 0:06:15] Rcd1 would be deadly.} Nb3 {[%emt 0:00:12]} 31. Rc2 {[%emt 0:00:28]} (31. Rb1 $1 $11 {and White is okay.} Nxd4 32. cxd4) 31... Nxd4 $19 {[%emt 0:01:09]} ({Don't take} 31... cxb5 32. Rxd5 Kc7 33. Rxb5 $18) 32. cxd4 {[%emt 0:00:02][%mdl 4096] Endgame KRR-KRN} Rh6 {[%emt 0:03:27]} ({Better is} 32... Kb7 $1 33. bxc6+ Kc7) 33. Nd3 {[%emt 0:03:48]} Kb7 {[%emt 0:02:18]} 34. Nc5+ {[%emt 0:00:44]} Kc7 {[%emt 0:00:11]} ({Black should play} 34... Kb6 $17 35. bxc6 Ra8) 35. Na4 {[%emt 0:01:06] [#]} (35. b6+ $1 $15 Kxb6 36. Rb2+ Ka7 37. Ra2 (37. Rb7+ Ka8 $17)) 35... Rhg6 {[%emt 0:04:11]} (35... Rb8 $1 $17 36. b6+ Rxb6 37. Nxb6 Kxb6) 36. b6+ $1 $11 {[%emt 0:00:33]} Kd6 {[%emt 0:00:04] [#]} (36... Kb8 $11) 37. f3 {[%emt 0:00:27]} (37. b7 $1 $16) 37... Re6 {[%emt 0:03:18] The position is equal.} 38. Kf2 {[%emt 0:00:10]} Reg6 {[%emt 0:00:11]} 39. Kf1 {[%emt 0:00:10]} Re6 {[%emt 0:00:39]} 40. Rb2 {[%emt 0:02:02] Weighted Error Value: White=0.23 (precise) /Black=0.19 (very precise)} (40. Kf2 $11) 1/2-1/2

[Event "26th OIBM 2023"]
[Site "Gmund am Tegernsee"]
[Date "2023.10.30"]
[Round "3.39"]
[White "Kulaots, Kaido"]
[Black "Wacker, Peter"]
[Result "1-0"]
[ECO "C42"]
[WhiteElo "2508"]
[BlackElo "2234"]
[Annotator "RC"]
[PlyCount "33"]
[EventDate "2023.10.04"]
[EventType "swiss"]
[EventCountry "GER"]
[SourceTitle "playchess.com"]
[Source "ChessBase"]
[SourceQuality "1"]
[TimeControl "40/5400+30:1800+30"]

1. e4 {[%emt 0:00:08]} e5 {[%emt 0:00:08]} 2. Nf3 {[%emt 0:00:20]} Nf6 {[%emt 0:00:30]} 3. Nxe5 {[%emt 0:00:42]} d6 {[%emt 0:00:14]} 4. Nf3 {[%emt 0:00:20]} Nxe4 {[%emt 0:00:10]} 5. d4 {[%emt 0:00:16]} d5 {[%emt 0:00:13]} 6. Bd3 {[%emt 0:00:08]} Bd6 {[%emt 0:00:14]} 7. O-O {[%emt 0:00:09]} O-O {[%emt 0:00:10]} 8. Re1 {[%emt 0:02:46]} Bf5 {[%emt 0:06:06]} 9. c4 {[%emt 0:02:15]} c6 {[%emt 0:02:01]} 10. Ng5 {[%emt 0:07:30]} Bg6 {[%emt 0:17:32]} 11. Bxe4 {[%emt 0:03:02]} dxe4 {[%emt 0:00:48]} 12. Nc3 {[%emt 0:02:59]} Re8 {[%emt 0:02:17]} 13. Ngxe4 {[%emt 0:03:57]} Bxe4 {[%emt 0:15:59]} 14. Nxe4 {[%emt 0:02:05]} Bxh2+ {[%emt 0:02:05]} 15. Kxh2 {[%emt 0:00:41]} Qh4+ {[%emt 0:00:09]} 16. Kg1 {[%emt 0:00:06]} Rxe4 {[%emt 0:00:11]} 17. Bg5 {[%emt 0:00:20]} 1-0

[Event "26th OIBM 2023"]
[Site "Gmund am Tegernsee"]
[Date "2023.10.30"]
[Round "3.40"]
[White "Moeldner, Juergen"]
[Black "Schneider, Ilja"]
[Result "0-1"]
[ECO "C50"]
[WhiteElo "2227"]
[BlackElo "2468"]
[Annotator "RC"]
[PlyCount "130"]
[EventDate "2023.10.04"]
[EventType "swiss"]
[EventCountry "GER"]
[SourceTitle "playchess.com"]
[Source "ChessBase"]
[SourceQuality "1"]
[TimeControl "40/5400+30:1800+30"]

1. e4 {[%emt 0:00:08]} e5 {[%emt 0:00:35]} 2. Nf3 {[%emt 0:00:16]} Nc6 {[%emt 0:00:34]} 3. Bc4 {[%emt 0:00:08]} Bc5 {[%emt 0:00:08]} 4. d3 {[%emt 0:00:19]} Nf6 {[%emt 0:00:59]} 5. Nc3 {[%emt 0:00:33]} O-O {[%emt 0:02:32]} 6. Bg5 {[%emt 0:02:23]} h6 {[%emt 0:03:20]} 7. Be3 {[%emt 0:00:41]} Bxe3 {[%emt 0:07:01]} 8. fxe3 {[%emt 0:00:11]} d6 {[%emt 0:02:05]} 9. a3 {[%emt 0:03:15]} Ne7 {[%emt 0:14:46]} 10. Qd2 {[%emt 0:05:12]} c6 {[%emt 0:00:35]} 11. Bb3 {[%emt 0:02:57]} a5 {[%emt 0:07:23]} 12. O-O {[%emt 0:05:00]} Ng6 {[%emt 0:05:06]} 13. Rad1 {[%emt 0:02:15]} b5 {[%emt 0:01:35]} 14. Ne2 {[%emt 0:05:47]} Ra7 {[%emt 0:14:35]} 15. Ng3 {[%emt 0:05:12]} Re8 {[%emt 0:00:45]} 16. h3 {[%emt 0:03:35]} d5 {[%emt 0:04:26]} 17. exd5 {[%emt 0:02:20]} cxd5 {[%emt 0:00:15]} 18. Qf2 {[%emt 0:04:25]} Rc7 {[%emt 0:03:20]} 19. d4 {[%emt 0:09:15]} e4 {[%emt 0:04:25]} 20. Nh2 {[%emt 0:02:26]} Qd6 {[%emt 0:00:55]} 21. Rd2 {[%emt 0:04:11]} a4 {[%emt 0:02:37]} 22. Ba2 {[%emt 0:01:30]} b4 {[%emt 0:00:17]} 23. axb4 {[%emt 0:02:15]} Qxb4 {[%emt 0:00:04]} 24. Rb1 {[%emt 0:01:29]} Kh7 {[%emt 0:04:13]} 25. Nhf1 {[%emt 0:01:38]} Be6 {[%emt 0:01:45]} 26. Qe1 {[%emt 0:05:49]} Rec8 {[%emt 0:04:15]} 27. Qd1 {[%emt 0:02:54]} Rc6 {[%emt 0:00:19]} 28. Rf2 {[%emt 0:01:40]} Qe7 {[%emt 0:03:36]} 29. Ra1 {[%emt 0:04:43]} Qb7 {[%emt 0:00:27]} 30. b3 {[%emt 0:02:42]} axb3 {[%emt 0:05:35]} 31. Bxb3 {[%emt 0:00:20]} Ra6 {[%emt 0:01:25]} 32. Rxa6 {[%emt 0:02:27]} Qxa6 {[%emt 0:06:37]} 33. Nh5 {[%emt 0:01:51]} Ne8 {[%emt 0:00:00]} 34. Nf4 {[%emt 0:01:44]} Nxf4 {[%emt 0:00:00]} 35. Rxf4 {[%emt 0:01:29]} Nd6 {[%emt 0:00:00]} 36. Qh5 {[%emt 0:03:00]} f5 {[%emt 0:00:00]} 37. Rf2 {[%emt 0:02:31]} Qa5 {[%emt 0:00:00]} 38. Qe2 {[%emt 0:02:53]} Qc7 {[%emt 0:00:00]} 39. Qa6 {[%emt 0:02:37]} Qc6 {[%emt 0:00:31]} 40. Qxc6 {[%emt 0:01:21]} Rxc6 {[%emt 0:00:01]} 41. Rd2 {[%emt 0:32:31]} g5 {[%emt 0:30:43]} 42. g3 {[%emt 0:00:00]} Ra6 {[%emt 0:00:00]} 43. Rd1 {[%emt 0:00:00]} Kg6 {[%emt 0:00:00]} 44. Kf2 {[%emt 0:00:00]} Kf6 {[%emt 0:00:00]} 45. Nd2 {[%emt 0:00:00]} Ra7 {[%emt 0:00:00]} 46. Rc1 {[%emt 0:00:00]} f4 {[%emt 0:00:00]} 47. Nf1 {[%emt 0:00:00]} Nf5 {[%emt 0:00:00]} 48. Rd1 {[%emt 0:00:00]} Rc7 {[%emt 0:00:00]} 49. g4 {[%emt 0:00:00]} Nd6 {[%emt 0:00:00]} 50. Ra1 {[%emt 0:00:00]} Rc3 {[%emt 0:00:00]} 51. Ra5 {[%emt 0:00:11]} Nc4 {[%emt 0:00:00]} 52. Ra6 {[%emt 0:04:04]} Ke7 {[%emt 0:00:00]} 53. Ke2 {[%emt 0:02:04]} Nxe3 {[%emt 0:00:00]} 54. Kd2 {[%emt 0:00:07]} Rxb3 {[%emt 0:00:00]} 55. cxb3 {[%emt 0:00:02]} Nxf1+ {[%emt 0:00:00]} 56. Ke2 {[%emt 0:01:56]} Ng3+ {[%emt 0:00:00]} 57. Kf2 {[%emt 0:00:17]} e3+ {[%emt 0:00:06]} 58. Kf3 {[%emt 0:00:17]} Bd7 {[%emt 0:02:03]} 59. Rb6 {[%emt 0:01:32]} Kd8 {[%emt 0:01:17]} 60. Rxh6 {[%emt 0:00:37]} Bb5 {[%emt 0:00:27]} 61. Re6 {[%emt 0:00:53]} Bd3 {[%emt 0:01:06]} 62. Rxe3 {[%emt 0:00:40]} Be4+ {[%emt 0:00:18]} 63. Kf2 {[%emt 0:00:14]} Nh1+ {[%emt 0:00:04]} 64. Ke2 {[%emt 0:01:03]} fxe3 {[%emt 0:00:03]} 65. Kxe3 {[%emt 0:00:06]} Bg2 {[%emt 0:00:03]} 0-1

[Event "26th OIBM 2023"]
[Site "Gmund am Tegernsee"]
[Date "2023.10.30"]
[Round "3.41"]
[White "Weishaeutel, Moritz"]
[Black "Tonndorf, Matthias"]
[Result "1-0"]
[ECO "B22"]
[WhiteElo "2403"]
[BlackElo "2206"]
[Annotator "RC"]
[PlyCount "101"]
[EventDate "2023.10.04"]
[EventType "swiss"]
[EventCountry "GER"]
[SourceTitle "playchess.com"]
[Source "ChessBase"]
[SourceQuality "1"]
[TimeControl "40/5400+30:1800+30"]

1. e4 {[%emt 0:00:02]} c5 {[%emt 0:00:06]} 2. Nf3 {[%emt 0:00:07]} e6 {[%emt 0:00:15]} 3. c3 {[%emt 0:00:05]} d5 {[%emt 0:03:11]} 4. exd5 {[%emt 0:00:29]} Qxd5 {[%emt 0:00:21]} 5. d4 {[%emt 0:00:05]} Nf6 {[%emt 0:00:18]} 6. Na3 {[%emt 0:00:05]} Be7 {[%emt 0:04:23]} 7. Nb5 {[%emt 0:06:23]} Na6 {[%emt 0:03:04]} 8. Be2 {[%emt 0:02:58]} O-O {[%emt 0:01:26]} 9. O-O {[%emt 0:00:44]} cxd4 {[%emt 0:05:06]} 10. Nfxd4 {[%emt 0:05:58]} Qd8 {[%emt 0:05:46]} 11. Bf4 {[%emt 0:02:26]} Nd5 {[%emt 0:07:18]} 12. Bg3 {[%emt 0:00:18]} Bh4 {[%emt 0:03:56]} 13. Bxh4 {[%emt 0:06:36]} Qxh4 {[%emt 0:00:52]} 14. Bf3 {[%emt 0:00:25]} Rd8 {[%emt 0:01:42]} 15. Re1 {[%emt 0:01:34]} Qf6 {[%emt 0:02:29]} 16. Qe2 {[%emt 0:05:48]} Nf4 {[%emt 0:10:18]} 17. Qe3 {[%emt 0:01:14]} Nd5 {[%emt 0:05:50]} 18. Qe5 {[%emt 0:18:28]} Qxe5 {[%emt 0:02:11]} 19. Rxe5 {[%emt 0:00:04]} Nb6 {[%emt 0:00:20]} 20. b3 {[%emt 0:03:16]} f6 {[%emt 0:06:33]} 21. Rxe6 {[%emt 0:06:10]} Bxe6 {[%emt 0:01:30]} 22. Bxb7 {[%emt 0:00:03]} Bc8 {[%emt 0:00:54]} 23. Bxa8 {[%emt 0:00:28]} Nxa8 {[%emt 0:00:12]} 24. Nxa7 {[%emt 0:00:28]} Bb7 {[%emt 0:00:54]} 25. Re1 {[%emt 0:02:35]} N8c7 {[%emt 0:06:25]} 26. f3 {[%emt 0:01:31]} Nd5 {[%emt 0:03:09]} 27. c4 {[%emt 0:12:13]} Nf4 {[%emt 0:09:30]} 28. Nab5 {[%emt 0:01:30]} Nb4 {[%emt 0:03:38]} 29. Re7 {[%emt 0:22:57]} Nc6 {[%emt 0:02:22]} 30. Rxb7 {[%emt 0:00:00]} Nxd4 {[%emt 0:00:09]} 31. Nxd4 {[%emt 0:00:00]} Rxd4 {[%emt 0:00:10]} 32. Kf2 {[%emt 0:00:00]} g5 {[%emt 0:04:49]} 33. g3 {[%emt 0:00:00]} Ne6 {[%emt 0:01:40]} 34. Ke2 {[%emt 0:00:00]} Rd6 {[%emt 0:01:37]} 35. a4 {[%emt 0:00:00]} Nd4+ {[%emt 0:01:08]} 36. Ke3 {[%emt 0:00:00]} f5 {[%emt 0:00:43]} 37. c5 {[%emt 0:00:00]} Nc2+ {[%emt 0:00:29]} 38. Ke2 {[%emt 0:00:00]} Re6+ {[%emt 0:01:43]} 39. Kd3 {[%emt 0:00:00]} Ne1+ {[%emt 0:00:11]} 40. Kd4 {[%emt 0:00:00]} Nxf3+ {[%emt 0:00:44]} 41. Kd5 {[%emt 0:24:12]} Re2 {[%emt 0:33:00]} 42. c6 {[%emt 0:05:36]} Rd2+ {[%emt 0:00:23]} 43. Kc5 {[%emt 0:01:10]} Ne5 {[%emt 0:00:00]} 44. c7 {[%emt 0:00:00]} Rc2+ {[%emt 0:00:00]} 45. Kd4 {[%emt 0:00:00]} Nc6+ {[%emt 0:00:00]} 46. Kd3 {[%emt 0:00:00]} Nb4+ {[%emt 0:00:00]} 47. Rxb4 {[%emt 0:00:00]} Rxc7 {[%emt 0:00:00]} 48. a5 {[%emt 0:00:00]} Kf7 {[%emt 0:00:00]} 49. a6 {[%emt 0:00:00]} Ke6 {[%emt 0:00:00]} 50. Rb7 {[%emt 0:00:00]} Rc1 {[%emt 0:00:00]} 51. a7 {[%emt 0:00:00]} 1-0

[Event "26th OIBM 2023"]
[Site "Gmund am Tegernsee"]
[Date "2023.10.30"]
[Round "3.42"]
[White "Womacka, Mathias"]
[Black "Khrapko, Marharyta"]
[Result "1-0"]
[ECO "B32"]
[WhiteElo "2371"]
[BlackElo "2170"]
[Annotator "RC"]
[PlyCount "103"]
[EventDate "2023.10.04"]
[EventType "swiss"]
[EventCountry "GER"]
[SourceTitle "playchess.com"]
[Source "ChessBase"]
[SourceQuality "1"]
[TimeControl "40/5400+30:1800+30"]

1. e4 {[%emt 0:00:03]} c5 {[%emt 0:00:01]} 2. Nf3 {[%emt 0:00:07]} Nc6 {[%emt 0:00:03]} 3. d4 {[%emt 0:00:10]} cxd4 {[%emt 0:00:03]} 4. Nxd4 {[%emt 0:00:06]} e5 {[%emt 0:00:03]} 5. Nb5 {[%emt 0:00:19]} d6 {[%emt 0:00:01]} 6. N1c3 {[%emt 0:00:39]} a6 {[%emt 0:00:15]} 7. Na3 {[%emt 0:00:05]} Be7 {[%emt 0:00:06]} 8. Nc4 {[%emt 0:01:06]} b5 {[%emt 0:00:10]} 9. Ne3 {[%emt 0:00:05]} Nf6 {[%emt 0:00:08]} 10. Bd3 {[%emt 0:00:56]} O-O {[%emt 0:00:08]} 11. O-O {[%emt 0:00:11]} Nb4 {[%emt 0:00:05]} 12. Be2 {[%emt 0:02:20]} Bb7 {[%emt 0:00:36]} 13. a3 {[%emt 0:05:59]} Nc6 {[%emt 0:00:29]} 14. Nf5 {[%emt 0:03:19]} Ne8 {[%emt 0:08:55]} 15. Qd3 {[%emt 0:36:16]} Bg5 {[%emt 0:05:07]} 16. Rd1 {[%emt 0:00:32]} Bxc1 {[%emt 0:00:16]} 17. Raxc1 {[%emt 0:00:05]} Qg5 {[%emt 0:02:06]} 18. h4 {[%emt 0:08:18]} Qf6 {[%emt 0:00:03]} 19. Nd5 {[%emt 0:02:14]} Qd8 {[%emt 0:00:25]} 20. c4 {[%emt 0:16:50]} bxc4 {[%emt 0:12:47]} 21. Rxc4 {[%emt 0:00:06]} g6 {[%emt 0:00:09]} 22. Rxc6 {[%emt 0:00:31]} gxf5 {[%emt 0:00:11]} 23. Rc4 {[%emt 0:02:22]} f4 {[%emt 0:14:03]} 24. Qh3 {[%emt 0:05:17]} Kh8 {[%emt 0:17:05]} 25. Bg4 {[%emt 0:00:05]} Bxd5 {[%emt 0:03:41]} 26. Rxd5 {[%emt 0:00:07]} Nc7 {[%emt 0:00:49]} 27. Rd3 {[%emt 0:03:21]} Nb5 {[%emt 0:00:30]} 28. Bf5 {[%emt 0:01:46]} Nd4 {[%emt 0:00:26]} 29. Qg4 {[%emt 0:01:26]} Qf6 {[%emt 0:07:16]} 30. Rcxd4 {[%emt 0:03:33]} exd4 {[%emt 0:00:42]} 31. Qxf4 {[%emt 0:00:10]} Rad8 {[%emt 0:04:44]} 32. Qg5 {[%emt 0:03:38]} Qxg5 {[%emt 0:04:07]} 33. hxg5 {[%emt 0:00:05]} d5 {[%emt 0:00:17]} 34. e5 {[%emt 0:00:20]} Rfe8 {[%emt 0:01:59]} 35. f4 {[%emt 0:00:08]} Rb8 {[%emt 0:00:52]} 36. b4 {[%emt 0:00:22]} a5 {[%emt 0:01:50]} 37. Rxd4 {[%emt 0:00:05]} axb4 {[%emt 0:00:03]} 38. axb4 {[%emt 0:00:05]} Red8 {[%emt 0:04:19]} 39. Bd3 {[%emt 0:01:54]} Rb6 {[%emt 0:06:59]} 40. b5 {[%emt 0:02:59]} h6 {[%emt 0:00:55]} 41. gxh6 {[%emt 0:02:30]} Rxh6 {[%emt 0:00:59]} 42. Kf2 {[%emt 0:00:51]} Rh4 {[%emt 0:09:26]} 43. Bc4 {[%emt 0:10:46]} f6 {[%emt 0:06:26]} 44. exf6 {[%emt 0:03:24]} Rh5 {[%emt 0:04:32]} 45. g4 {[%emt 0:03:40]} Rc8 {[%emt 0:13:04]} 46. gxh5 {[%emt 0:02:05]} dxc4 {[%emt 0:00:08]} 47. Ke2 {[%emt 0:00:09]} c3 {[%emt 0:01:08]} 48. Kd1 {[%emt 0:00:08]} c2+ {[%emt 0:00:19]} 49. Kc1 {[%emt 0:00:04]} Kg8 {[%emt 0:01:32]} 50. b6 {[%emt 0:01:09]} Kf7 {[%emt 0:02:10]} 51. b7 {[%emt 0:00:28]} Rb8 {[%emt 0:00:11]} 52. Rb4 {[%emt 0:00:09]} 1-0

[Event "26th OIBM 2023"]
[Site "Gmund am Tegernsee"]
[Date "2023.10.30"]
[Round "3.43"]
[White "Schultz, Andreas"]
[Black "Reimann, Sebastian"]
[Result "0-1"]
[ECO "E94"]
[WhiteElo "2183"]
[BlackElo "2342"]
[Annotator "RC"]
[PlyCount "76"]
[EventDate "2023.10.04"]
[EventType "swiss"]
[EventCountry "GER"]
[SourceTitle "playchess.com"]
[Source "ChessBase"]
[SourceQuality "1"]
[TimeControl "40/5400+30:1800+30"]

1. d4 {[%emt 0:00:05]} g6 {[%emt 0:00:10]} 2. e4 {[%emt 0:00:21]} d6 {[%emt 0:00:09]} 3. c4 {[%emt 0:00:16]} Bg7 {[%emt 0:00:10]} 4. Nc3 {[%emt 0:00:09]} Nd7 {[%emt 0:00:09]} 5. Nf3 {[%emt 0:02:28]} e5 {[%emt 0:00:20]} 6. Be2 {[%emt 0:03:03]} Ngf6 {[%emt 0:06:12]} 7. O-O {[%emt 0:01:52]} O-O {[%emt 0:00:40]} 8. Be3 {[%emt 0:05:01]} exd4 {[%emt 0:11:04]} 9. Nxd4 {[%emt 0:05:10]} Re8 {[%emt 0:00:12]} 10. f3 {[%emt 0:00:25]} c6 {[%emt 0:04:47]} 11. Nc2 {[%emt 0:06:54]} Nb6 {[%emt 0:02:50]} 12. Qd2 {[%emt 0:18:07]} Be6 {[%emt 0:02:27]} 13. b3 {[%emt 0:02:08]} d5 {[%emt 0:01:45]} 14. cxd5 {[%emt 0:01:38]} cxd5 {[%emt 0:00:26]} 15. e5 {[%emt 0:00:10]} Nfd7 {[%emt 0:01:02]} 16. f4 {[%emt 0:00:12]} f6 {[%emt 0:02:02]} 17. exf6 {[%emt 0:04:59]} Nxf6 {[%emt 0:02:17]} 18. Rad1 {[%emt 0:04:54]} Rc8 {[%emt 0:03:20]} 19. Nd4 {[%emt 0:07:59]} Bg4 {[%emt 0:10:38]} 20. h3 {[%emt 0:03:00]} Qe7 {[%emt 0:13:48]} 21. Bf2 {[%emt 0:05:13]} Rxc3 {[%emt 0:03:26]} 22. Bxg4 {[%emt 0:00:42]} Ne4 {[%emt 0:00:58]} 23. Qe1 {[%emt 0:03:25]} Nxf2 {[%emt 0:05:58]} 24. Qxf2 {[%emt 0:03:24]} Qc5 {[%emt 0:02:07]} 25. Bf3 {[%emt 0:09:43]} Ree3 {[%emt 0:06:06]} 26. Ne2 {[%emt 0:00:24]} Rc2 {[%emt 0:00:59]} 27. b4 {[%emt 0:00:10]} Qe7 {[%emt 0:00:12]} 28. Rfe1 {[%emt 0:01:49]} d4 {[%emt 0:05:00]} 29. Qf1 {[%emt 0:04:52]} d3 {[%emt 0:01:58]} 30. Ng3 {[%emt 0:00:04]} d2 {[%emt 0:00:29]} 31. Rxe3 {[%emt 0:02:19]} Qxe3+ {[%emt 0:00:08]} 32. Kh1 {[%emt 0:00:07]} Rc1 {[%emt 0:03:11]} 33. Ne4 {[%emt 0:02:02]} Qe1 {[%emt 0:02:55]} 34. Nxd2 {[%emt 0:00:25]} Rxd1 {[%emt 0:00:05]} 35. Bxd1 {[%emt 0:00:10]} Qxd2 {[%emt 0:00:05]} 36. Bb3+ {[%emt 0:00:13]} Kh8 {[%emt 0:00:10]} 37. Qf3 {[%emt 0:01:43]} Qe1+ {[%emt 0:01:11]} 38. Kh2 {[%emt 0:00:05]} Bd4 {[%emt 0:00:09]} 0-1

[Event "26th OIBM 2023"]
[Site "Gmund am Tegernsee"]
[Date "2023.10.30"]
[Round "3.44"]
[White "Lammers, Markus"]
[Black "Heinatz, Gundula"]
[Result "1-0"]
[ECO "B14"]
[WhiteElo "2336"]
[BlackElo "2148"]
[Annotator "RC"]
[PlyCount "77"]
[EventDate "2023.10.04"]
[EventType "swiss"]
[EventCountry "GER"]
[SourceTitle "playchess.com"]
[Source "ChessBase"]
[SourceQuality "1"]
[TimeControl "40/5400+30:1800+30"]

1. e4 {[%emt 0:00:13]} c6 {[%emt 0:00:33]} 2. c4 {[%emt 0:01:17]} d5 {[%emt 0:00:40]} 3. exd5 {[%emt 0:00:13]} cxd5 {[%emt 0:00:04]} 4. d4 {[%emt 0:01:54]} Nf6 {[%emt 0:00:42]} 5. Nc3 {[%emt 0:00:06]} g6 {[%emt 0:01:37]} 6. cxd5 {[%emt 0:00:48]} Bg7 {[%emt 0:00:23]} 7. Bc4 {[%emt 0:00:42]} O-O {[%emt 0:00:43]} 8. Nf3 {[%emt 0:00:19]} Nbd7 {[%emt 0:01:42]} 9. O-O {[%emt 0:00:17]} Nb6 {[%emt 0:00:21]} 10. Bb3 {[%emt 0:00:06]} Nbxd5 {[%emt 0:02:52]} 11. Ne5 {[%emt 0:00:08]} Be6 {[%emt 0:10:51]} 12. Re1 {[%emt 0:09:34]} Nc7 {[%emt 0:10:15]} 13. Bg5 {[%emt 0:13:40]} Bxb3 {[%emt 0:13:42]} 14. Qxb3 {[%emt 0:00:57]} Rb8 {[%emt 0:14:09]} 15. d5 {[%emt 0:05:35]} Nce8 {[%emt 0:01:19]} 16. Rad1 {[%emt 0:08:37]} Nd6 {[%emt 0:00:19]} 17. h3 {[%emt 0:01:18]} Re8 {[%emt 0:07:17]} 18. Qa4 {[%emt 0:06:34]} h6 {[%emt 0:06:26]} 19. Bf4 {[%emt 0:01:24]} a6 {[%emt 0:02:37]} 20. Qb4 {[%emt 0:01:20]} Rc8 {[%emt 0:03:28]} 21. Qa4 {[%emt 0:11:36]} b5 {[%emt 0:05:27]} 22. Qb4 {[%emt 0:03:54]} a5 {[%emt 0:03:08]} 23. Qb3 {[%emt 0:00:19]} g5 {[%emt 0:04:03]} 24. Bh2 {[%emt 0:02:55]} b4 {[%emt 0:03:48]} 25. Na4 {[%emt 0:01:50]} Qc7 {[%emt 0:00:17]} 26. Nc6 {[%emt 0:01:19]} Bf8 {[%emt 0:02:35]} 27. Qf3 {[%emt 0:04:23]} Kg7 {[%emt 0:00:18]} 28. Be5 {[%emt 0:00:17]} Ra8 {[%emt 0:02:50]} 29. Nc5 {[%emt 0:00:35]} Qc8 {[%emt 0:00:51]} 30. g4 {[%emt 0:02:00]} Kg8 {[%emt 0:01:04]} 31. Bxf6 {[%emt 0:14:26]} exf6 {[%emt 0:00:01]} 32. Qxf6 {[%emt 0:00:09]} Qc7 {[%emt 0:00:09]} 33. Qf3 {[%emt 0:01:37]} Bg7 {[%emt 0:01:46]} 34. Ne4 {[%emt 0:03:23]} Bxb2 {[%emt 0:00:29]} 35. Nf6+ {[%emt 0:00:34]} Bxf6 {[%emt 0:00:16]} 36. Qxf6 {[%emt 0:00:01]} Kh7 {[%emt 0:00:32]} 37. Ne7 {[%emt 0:02:30]} Qd7 {[%emt 0:00:44]} 38. Re5 {[%emt 0:00:42]} Rf8 {[%emt 0:00:40]} 39. Re6 {[%emt 0:01:19]} 1-0